fUSD/lending_fUSD_20240117
["ID","MTS","AMOUNT","RATE_DAILY","PERIOD"]
[311855256,1705474240609,-157.93,0.00022519,2]
[311855258,1705474240618,-3515.92,0.00022519,2]
[311855260,1705474240628,-737.69,0.00022537,2]
[311855262,1705474240639,-719.89,0.00022537,2]
[311855264,1705474240650,-294.27,0.000226,2]
[311855266,1705474240659,-150.0,0.000226,2]
[311855268,1705474240668,-408.47,0.000226,2]
[311855270,1705474240678,-150.0,0.000226,2]
[311855272,1705474240687,-150.0,0.000226,2]
[311855274,1705474240696,-345.42,0.000226,2]
[311855276,1705474240705,-294.27,0.000226,2]
[311855277,1705474240715,-150.0,0.000226,2]
[311855280,1705474240724,-150.0,0.000226,2]
[311855282,1705474240734,-150.0,0.000226,2]
[311855284,1705474240743,-294.27,0.000226,2]
[311855286,1705474240752,-150.0,0.000226,2]
[311855288,1705474240762,-150.0,0.000226,2]
[311855290,1705474240771,-159.94568968,0.000226,2]
[311855579,1705474243380,-134.32431032,0.000226,2]
[311855581,1705474243389,-150.0,0.000226,2]
[311855583,1705474243399,-301.17,0.000226,2]
[311855585,1705474243407,-1011.11498456,0.00022763,3]
[311855587,1705474243416,-135.84208852,0.000228,2]
[311855591,1705474243445,-272.62791148,0.000228,2]
[311855593,1705474243454,-150.0,0.000228,2]
[311855595,1705474243463,-150.0,0.000228,2]
[311855597,1705474243472,-150.0,0.000228,2]
[311855599,1705474243482,-300.0,0.000228,2]
[311855601,1705474243491,-150.0,0.000228,2]
[311855603,1705474243501,-294.27,0.000228,2]
[311855605,1705474243511,-562.98,0.000228,2]
[311855607,1705474243521,-150.0,0.000228,2]
[311855609,1705474243532,-500.0,0.00022808,2]
[311855611,1705474243542,-171.17894812,0.00022891,2]
[311855613,1705474243551,-81.26770939,0.00022893,2]
[311855839,1705474245848,-2802.46837914,0.00022893,2]
[311855840,1705474245857,-171.17894808,0.00022893,2]
[311855841,1705474245866,-1000.0,0.00022894,2]
[311855842,1705474245875,-171.17894808,0.00022896,2]
[311855843,1705474245885,-171.17894808,0.00022898,2]
[311855845,1705474245894,-1364.3217341,0.000229,2]
[311855847,1705474245904,-294.11,0.000229,2]
[311855849,1705474245913,-500.0,0.000229,2]
[311855851,1705474245922,-878.56242002,0.000229,2]
[311855853,1705474245931,-878.56242002,0.000229,2]
[311855855,1705474245940,-878.56242002,0.000229,2]
[311855857,1705474245949,-878.56242002,0.000229,2]
[311855859,1705474245958,-878.56242002,0.000229,2]
[311855861,1705474245967,-878.56242002,0.000229,2]
[311855863,1705474245976,-878.56242002,0.000229,2]
[311855865,1705474245985,-878.56242002,0.000229,2]
[311855867,1705474245996,-878.56242002,0.000229,2]
[311855868,1705474246006,-171.17894808,0.000229,2]
[311855869,1705474246015,-155.15378142,0.000229,2]
[311855870,1705474246123,-723.4086386,0.000229,2]
[311855871,1705474246132,-878.56242002,0.000229,2]
[311855872,1705474246142,-878.56242002,0.000229,2]
[311855873,1705474246151,-516.3546256,0.000229,2]
[311855874,1705474246182,-362.20779442,0.000229,2]
[311855875,1705474246191,-405.85604933,0.000229,2]
[311855876,1705474246202,-333.231228,0.000229,2]
[311855881,1705474248930,159.54,0.00020074,2]
[311855882,1705474278518,3154.69142288,0.00021,2]
[311855883,1705474279625,364.63398614,0.00020074,2]
[311855884,1705474280585,890.32782938,0.00019974,2]
[311855885,1705474284066,175.28,0.00021992,2]
[311855886,1705474284455,1461.55250826,0.00020074,2]
[311855887,1705474285408,158.05526152,0.00020074,2]
[311855888,1705474286361,502.98825693,0.00020074,2]
[311855889,1705474287473,15704.58808636,0.00020074,2]
[311855890,1705474293505,156.4507304,0.00020074,2]
[311855891,1705474297703,549.61916433,0.00020074,2]
[311855892,1705474297765,21208.70072832,0.00020074,2]
[311855893,1705474302573,294.14687268,0.00020074,2]
[311855894,1705474305436,161.19002978,0.00020074,2]
[311855895,1705474409798,352.1,0.00021998,2]
[311855896,1705474414553,324.3201233,0.00021998,2]
[311855897,1705474418450,387.00203848,0.00021852,2]
[311855898,1705474418474,35.75796152,0.00021852,2]
[311855899,1705474423016,178.98,0.00021841,2]
[311855901,1705474581721,167.66,0.00021841,2]
[311855902,1705474599076,155.0,0.00021991,2]
[311855903,1705474605396,164.78321963,0.00021991,2]
[311855904,1705474743347,150.0,0.0002199,2]
[311855905,1705474765053,162.3,0.00019912,2]
[311855906,1705474866381,661.79,0.00021802,2]
[311855907,1705474874480,167.04,0.00021816,2]
[311855908,1705475161801,163.21,0.00021914,2]
[311855909,1705475194188,205.0,0.00021728,2]
[311855910,1705475207532,154.18,0.00019865,2]
[311855911,1705475228783,155.99,0.00021788,2]
[311855912,1705475295512,470.56,0.00021783,2]
[311855913,1705475307802,155.0,0.00021991,2]
[311855914,1705475324064,235.12703746,0.00021991,2]
[311855915,1705475351777,196.91428267,0.00021991,2]
[311855916,1705475360396,4492.84197902,0.00021,2]
[311855917,1705475360420,1876124.72940987,0.00021,2]
[311855918,1705475360447,783000.0,0.00021,2]
[311855919,1705475360478,500.0,0.00021,2]
[311855920,1705475360504,500.0,0.00021,2]
[311855921,1705475360532,500.0,0.00021,2]
[311855922,1705475360561,400.0,0.00021,2]
[311855936,1705475432099,-397.63149517,0.00020998,2]
[311855937,1705475432109,-303.4654799,0.00020999,2]
[311855938,1705475432119,-72.89193993,0.00021,2]
[311855939,1705475432163,-932.47056778,0.00021,2]
[311855940,1705475432207,-312.12835233,0.00020997,2]
[311855941,1705475432217,-122.43084987,0.00021,2]
[311855995,1705475438116,-888229.8236531,0.00020997,2]
[311855996,1705475438126,-1831.90737498,0.00021,2]
[311855997,1705475438137,-449631.7227291,0.00021,2]
[311855998,1705475438285,-309.11417651,0.00021,2]
[311855999,1705475438297,-47304.62394811,0.00021,2]
[311856214,1705475440359,-1000.0,0.00021,2]
[311856235,1705475440473,-956.40573681,0.00021,2]
[311856297,1705475441026,-776.99749995,0.00021,2]
[311856495,1705475443046,-997.14553248,0.00021,2]
[311856498,1705475443059,-6224.65128155,0.00021,2]
[311856500,1705475443071,-664.00152642,0.00021,2]
[311856503,1705475443092,-6051.12435395,0.00021,2]
[311856505,1705475443105,-4970.76410735,0.00021,2]
[311856525,1705475443273,-72587.96165326,0.00021,2]
[311856809,1705475446576,-2861.5891611,0.00021,2]
[311856810,1705475446618,-5539.74377319,0.00021,2]
[311856811,1705475446640,-1840.58896892,0.00021,2]
[311856812,1705475446651,-26255.11500145,0.00021,2]
[311856813,1705475446662,-419.59727266,0.00021,2]
[311856815,1705475446690,-256.914,0.00021,2]
[311856816,1705475446701,-477.94392417,0.00021,2]
[311856817,1705475446712,-402.40279773,0.00021,2]
[311856818,1705475446728,-999.63790966,0.00021,2]
[311856819,1705475446740,-2252.45446741,0.00021,2]
[311856820,1705475446749,-197.20385187,0.00021638,2]
[311856821,1705475446759,-155.9,0.00021738,2]
[311856822,1705475446768,-1193.64773487,0.000218,2]
[311856823,1705475446821,-17932.49085358,0.000218,2]
[311856824,1705475446831,-879.65,0.00021917,2]
[311856825,1705475446840,-1449.57,0.00021917,2]
[311856826,1705475446849,-968.42,0.00021917,2]
[311856827,1705475446859,-160.94,0.00021993,2]
[311856828,1705475446868,-150.54339926,0.00021994,2]
[311856829,1705475446878,-474.34731658,0.00021996,2]
[311856830,1705475446888,-161.51,0.00022067,2]
[311856831,1705475446897,-220.55171939,0.0002211,2]
[311856832,1705475446907,-154.18,0.00022128,2]
[311856833,1705475446917,-879.65,0.00022191,2]
[311856834,1705475446927,-1449.57,0.00022191,2]
[311856835,1705475446937,-968.42,0.00022191,2]
[311856836,1705475446946,-294.27,0.000222,2]
[311856837,1705475446956,-408.47,0.000222,2]
[311856838,1705475446965,-150.0,0.000222,2]
[311856839,1705475446974,-150.0,0.000222,2]
[311856840,1705475446983,-418.32,0.000222,2]
[311856841,1705475446993,-408.47,0.000222,2]
[311856842,1705475447002,-418.32,0.000222,2]
[311856843,1705475447014,-590.47,0.000222,2]
[311856844,1705475447023,-153.74,0.000222,2]
[311856845,1705475447032,-710.16,0.00022252,2]
[311856846,1705475447041,-662.34483459,0.00022256,2]
[311856847,1705475447050,-499.99,0.00022256,2]
[311856848,1705475447060,-21334.3975855,0.00022257,2]
[311856849,1705475447070,-500.0,0.0002226,2]
[311856850,1705475447078,-197.20385186,0.00022264,2]
[311856851,1705475447087,-879.65,0.00022465,2]
[311856852,1705475447098,-1449.57,0.00022465,2]
[311856853,1705475447107,-968.42,0.00022465,2]
[311856854,1705475447115,-155.9,0.00022717,2]
[311856855,1705475447124,-879.65,0.00022739,2]
[311856856,1705475447133,-1449.57,0.00022739,2]
[311856857,1705475447142,-968.42,0.00022739,2]
[311856858,1705475447151,-407.23521993,0.00022758,2]
[311856859,1705475447161,-200.0,0.00022766,2]
[311856860,1705475447170,-150.0,0.000228,2]
[311856861,1705475447179,-164.5,0.000228,2]
[311856862,1705475447189,-302.69,0.000228,2]
[311856863,1705475447199,-314.34,0.000228,2]
[311856864,1705475447208,-150.0,0.000228,2]
[311856865,1705475447218,-418.32,0.000228,2]
[311856866,1705475447227,-150.0,0.000228,2]
[311856867,1705475447236,-150.0,0.000228,2]
[311856868,1705475447246,-150.0,0.000228,2]
[311856869,1705475447255,-150.0,0.000228,2]
[311856870,1705475447264,-408.47,0.000228,2]
[311856871,1705475447273,-294.27,0.000228,2]
[311856872,1705475447282,-314.52,0.000228,2]
[311856873,1705475447291,-150.0,0.000228,2]
[311856874,1705475447300,-418.32,0.000228,2]
[311856875,1705475447309,-408.47,0.000228,2]
[311856876,1705475447318,-150.0,0.000228,2]
[311856877,1705475447327,-314.52,0.000228,2]
[311856878,1705475447336,-150.0,0.000228,2]
[311856879,1705475447345,-150.0,0.000228,2]
[311856880,1705475447354,-294.27,0.000228,2]
[311856881,1705475447363,-150.0,0.000228,2]
[311856882,1705475447372,-408.47,0.000228,2]
[311856883,1705475447381,-150.0,0.000228,2]
[311856884,1705475447390,-314.52,0.000228,2]
[311856885,1705475447400,-418.32,0.000228,2]
[311856886,1705475447409,-294.27,0.000228,2]
[311856887,1705475447418,-150.0,0.000228,2]
[311856888,1705475447427,-150.0,0.000228,2]
[311856889,1705475447437,-150.0,0.000228,2]
[311856890,1705475447446,-418.32,0.000228,2]
[311856891,1705475447455,-150.0,0.000228,2]
[311856892,1705475447464,-408.47,0.000228,2]
[311856893,1705475447473,-314.52,0.000228,2]
[311856894,1705475447483,-150.0,0.000228,2]
[311856895,1705475447492,-294.27,0.000228,2]
[311856896,1705475447501,-150.0,0.000228,2]
[311856897,1705475447511,-408.47,0.000228,2]
[311856898,1705475447520,-294.27,0.000228,2]
[311856899,1705475447529,-418.32,0.000228,2]
[311856900,1705475447538,-150.0,0.000228,2]
[311856901,1705475447548,-150.0,0.000228,2]
[311856902,1705475447557,-150.0,0.000228,2]
[311856903,1705475447565,-314.52,0.000228,2]
[311856904,1705475447574,-150.0,0.000228,2]
[311856905,1705475447583,-418.32,0.000228,2]
[311856906,1705475447592,-314.52,0.000228,2]
[311856907,1705475447601,-408.47,0.000228,2]
[311856908,1705475447611,-150.0,0.000228,2]
[311856909,1705475447620,-294.27,0.000228,2]
[311856910,1705475447629,-150.0,0.000228,2]
[311856911,1705475447638,-418.32,0.000228,2]
[311856912,1705475447647,-150.0,0.000228,2]
[311856913,1705475447656,-150.0,0.000228,2]
[311856914,1705475447665,-408.47,0.000228,2]
[311856915,1705475447674,-150.0,0.000228,2]
[311856916,1705475447683,-294.27,0.000228,2]
[311856917,1705475447693,-314.52,0.000228,2]
[311856918,1705475447702,-150.0,0.000228,2]
[311856919,1705475447711,-418.32,0.000228,2]
[311856920,1705475447720,-408.47,0.000228,2]
[311856921,1705475447729,-674.79,0.000228,2]
[311856922,1705475447739,-150.0,0.000228,2]
[311856923,1705475447748,-294.27,0.000228,2]
[311856924,1705475447757,-500.0,0.00022808,2]
[311856925,1705475447767,-800.0,0.00022814,2]
[311856926,1705475447777,-500.0,0.00022815,2]
[311856927,1705475447786,-800.0,0.00022815,2]
[311856928,1705475447795,-186.45044788,0.00022843,2]
[311856929,1705475447804,-155.0,0.0002287,2]
[311856930,1705475447814,-401.61,0.00022877,2]
[311856931,1705475447823,-941.06,0.00022877,2]
[311856932,1705475447832,-401.61,0.00022877,2]
[311856933,1705475448142,-941.06,0.00022877,2]
[311856934,1705475448152,-941.06,0.00022877,2]
[311856935,1705475448161,-401.61,0.00022877,2]
[311856936,1705475448170,-401.61,0.00022877,2]
[311856937,1705475448180,-941.06,0.00022877,2]
[311856938,1705475448190,-400.23,0.00022877,2]
[311856939,1705475448204,-941.06,0.00022877,2]
[311856940,1705475448214,-1249.68,0.00022877,2]
[311856941,1705475448223,-10459.8876,0.00022887,2]
[311856942,1705475448233,-173.66243659,0.00022888,2]
[311856943,1705475448246,-219.7338084,0.00022888,2]
[311856944,1705475448255,-2643.42474781,0.00022889,2]
[311856945,1705475448264,-205.8519745,0.00022889,4]
[311856946,1705475448274,-197.20385186,0.0002289,2]
[311856947,1705475448283,-5990.2209,0.0002289,2]
[311856948,1705475448293,-15305.939,0.0002289,2]
[311856949,1705475448302,-262.7915,0.0002289,2]
[311856950,1705475448311,-55555.0,0.0002289,2]
[311856951,1705475448321,-5000.0,0.00022891,2]
[311856952,1705475448331,-2000.0,0.000229,2]
[311856953,1705475448341,-500.0,0.000229,2]
[311856954,1705475448350,-286.43610035,0.000229,2]
[311856955,1705475448360,-200.0,0.000229,2]
[311856956,1705475448369,-12076.64669868,0.000229,2]
[311856957,1705475448378,-115913.52074639,0.000229,2]
[311856958,1705475448393,-742.33532414,0.000229,2]
[311856959,1705475448405,-3593.39693038,0.000229,2]
[311856960,1705475448417,-1326.5773138,0.000229,2]
[311856961,1705475448447,-41729.20739412,0.000229,2]
[311856962,1705475448459,-23662.74688521,0.000229,2]
[311856963,1705475448571,-513.11503667,0.000229,2]
[311856964,1705475672751,1314.45,0.00021917,7]
[311856965,1705475677741,5097.25,0.00021917,5]
[311856966,1705475699724,-164.78321963,0.00021914,2]
[311856967,1705475699752,-419.29979936,0.00021915,2]
[311856968,1705475699780,-155.0,0.00021915,2]
[311856969,1705475699807,-19126.13858845,0.00021916,2]
[311856970,1705475699836,-681.47,0.00021917,2]
[311856971,1705475699863,-528.98,0.00021917,2]
[311856972,1705475699893,-545.05,0.00021917,2]
[311856973,1705475699921,-870.14,0.00021917,2]
[311856974,1705475699951,-1246.4,0.00021917,2]
[311856975,1705475699983,-1342.37,0.00021917,2]
[311856976,1705475700011,-500.0,0.00021917,2]
[311856977,1705475700040,-22014.71,0.00021917,2]
[311856978,1705475700065,-164.78321963,0.00021917,2]
[311856979,1705475700107,-419.29979936,0.00021917,2]
[311856980,1705475700126,-155.0,0.00021917,2]
[311856981,1705475700147,-493.97698101,0.00021917,2]
[311856982,1705475700156,-2034.28,0.00021917,2]
[311856983,1705475700165,-802.23,0.00021917,2]
[311856984,1705475700175,-505.3,0.00021917,2]
[311856985,1705475700185,-2681.14,0.00021917,2]
[311856986,1705475700196,-578.49,0.00021917,2]
[311856987,1705475700205,-500.0,0.00021917,2]
[311856988,1705475700215,-500.0,0.00021917,2]
[311856989,1705475700225,-500.0,0.00021917,2]
[311856990,1705475700234,-1871.4,0.00021917,2]
[311856991,1705475700243,-532.94752762,0.00021917,2]
[311856992,1705475700253,-1563.0,0.00021917,2]
[311856993,1705475700262,-2318.31,0.00021917,2]
[311856994,1705475700272,-1165.72,0.00021917,2]
[311856995,1705475700283,-1574.6,0.00021917,2]
[311856996,1705475700292,-1504.74407982,0.00021917,2]
[311856997,1705475700308,-681.47,0.00021917,2]
[311856998,1705475700337,-353.78592018,0.00021917,2]
[311856999,1705475700347,-175.19407982,0.00021917,2]
[311857000,1705475700363,-545.05,0.00021917,2]
[311857001,1705475700383,-870.14,0.00021917,2]
[311857002,1705475700448,-1246.4,0.00021917,2]
[311857003,1705475700475,-1342.37,0.00021917,2]
[311857004,1705475700502,-500.0,0.00021917,2]
[311857005,1705475700519,-22014.71,0.00021917,2]
[311857006,1705475700540,-961.31678512,0.00021917,2]
[311857007,1705475706447,154.18,0.00019669,2]
[311857008,1705475827868,500.0,0.0002219,15]
[311857009,1705476177412,4884.86,0.00021917,5]
[311857010,1705476229514,154.18,0.00019038,2]
[311857014,1705476249484,1259.68,0.00021917,7]
[311857015,1705476298910,168.42949388,0.0003,120]
[311857016,1705476317737,3790.59164763,0.00021915,4]
[311857017,1705476326447,763.55605542,0.00021916,5]
[311857018,1705476326565,763.55605542,0.00021916,5]
[311857019,1705476326699,763.55605542,0.00021916,5]
[311857020,1705476335206,151.0,0.00021918,7]
[311857021,1705476351466,3576.31516217,0.00021917,5]
[311857022,1705476451092,-164.78321963,0.00020859,2]
[311857023,1705476451114,-473.20829439,0.0002086,2]
[311857024,1705476451135,-1709.04497142,0.0002086,2]
[311857025,1705476451155,-302.20853106,0.00020861,2]
[311857026,1705476451176,-2306.5799976,0.00020861,2]
[311857027,1705476451197,-162.18930337,0.00020861,2]
[311857028,1705476451218,-33753.55301959,0.00020862,2]
[311857029,1705476451238,-155.0,0.00020863,2]
[311857030,1705476451258,-155.0,0.00020863,2]
[311857031,1705476451278,-155.0,0.00020863,2]
[311857032,1705476451298,-157.55654788,0.00020863,2]
[311857033,1705476451319,-285.35937216,0.00020863,2]
[311857034,1705476451342,-314.24418711,0.00020864,2]
[311857035,1705476451363,-3328.83599475,0.00020864,2]
[311857036,1705476451383,-3899.14167227,0.00020867,2]
[311857037,1705476451406,-376.45,0.00020871,2]
[311857038,1705476451428,-183.84,0.00020934,2]
[311857039,1705476451447,-239.07142493,0.0002119,2]
[311857040,1705476451468,-194.13,0.00021216,2]
[311857041,1705476451487,-1374.96,0.00021216,2]
[311857042,1705476451510,-2439.7,0.00021216,2]
[311857043,1705476451529,-4804.91,0.00021216,2]
[311857044,1705476451911,-175.8,0.00021251,2]
[311857045,1705476451931,-863.22,0.00021251,2]
[311857046,1705476451950,-499.99,0.00021251,2]
[311857047,1705476451969,-340.48,0.00021251,2]
[311857048,1705476451987,-852.95,0.00021251,2]
[311857049,1705476452008,-159.04,0.00021294,2]
[311857050,1705476452031,-188.57,0.0002137,2]
[311857051,1705476452051,-159.04,0.00021387,2]
[311857052,1705476452071,-623.55,0.00021419,2]
[311857053,1705476452091,-159.04,0.00021479,2]
[311857054,1705476452111,-159.04,0.00021572,2]
[311857055,1705476452133,-164.18,0.0002159,2]
[311857056,1705476452153,-159.04,0.00021664,2]
[311857057,1705476452172,-266.18223914,0.00021695,2]
[311857058,1705476452191,-3148.15668721,0.00021696,2]
[311857059,1705476452215,-483.68814411,0.000217,2]
[311857060,1705476452235,-357.86355932,0.00021717,2]
[311857061,1705476452255,-154.18,0.00021726,2]
[311857062,1705476452275,-159.04,0.00021757,2]
[311857063,1705476452296,-562.26592287,0.00021804,2]
[311857064,1705476452320,-158.15556964,0.00021805,2]
[311857065,1705476452340,-357.86355931,0.0002181,2]
[311857066,1705476452359,-172.19959115,0.00021815,2]
[311857067,1705476452378,-457.36204877,0.00021815,2]
[311857068,1705476452398,-1000.0,0.00021815,2]
[311857069,1705476452419,-989.73475423,0.00021815,2]
[311857070,1705476452439,-1981.22871792,0.00021816,2]
[311857071,1705476452459,-1266.91260458,0.00021816,2]
[311857097,1705476632145,-155.0,0.0002085,2]
[311857098,1705476632154,-384.58030079,0.00020851,2]
[311857099,1705476632164,-1032.51841918,0.00020852,2]
[311857100,1705476632201,-1232.00144346,0.00020852,2]
[311857101,1705476632258,-355.22622637,0.00020852,2]
[311857102,1705476632267,-164.78321963,0.00020852,2]
[311857103,1705476632277,-52.00559207,0.00020853,2]
[311857104,1705476632289,-644.56057522,0.00020853,2]
[311857105,1705476632298,-23.30085848,0.00020853,2]
[311857106,1705476632425,-138.88844489,0.00020853,2]
[311857107,1705476632435,-733.77609697,0.00020857,2]
[311857108,1705476632445,-205.0,0.00020917,2]
[311857109,1705476632454,-236.71,0.00020967,2]
[311857110,1705476632464,-152.48,0.00021041,2]
[311857111,1705476632474,-152.48,0.0002111,2]
[311857112,1705476632483,-152.48,0.00021178,2]
[311857114,1705476632493,-235.89308219,0.0002119,2]
[311857116,1705476632502,-152.48,0.00021247,2]
[311857118,1705476632511,-152.48,0.00021315,2]
[311857120,1705476632521,-152.48,0.00021384,2]
[311857122,1705476632530,-152.48,0.00021452,2]
[311857124,1705476632539,-623.0,0.0002148,2]
[311857127,1705476632548,-152.48,0.00021521,2]
[311857129,1705476632557,-152.48,0.00021589,2]
[311857131,1705476632567,-33753.55301959,0.00021643,2]
[311857133,1705476632576,-499.99,0.00021644,2]
[311857135,1705476632585,-500.58,0.00021644,2]
[311857136,1705476632594,-152.48,0.00021658,2]
[311857139,1705476632604,-2500.0,0.00021717,2]
[311857141,1705476632614,-3987.54723733,0.00021717,2]
[311857144,1705476632638,-815.00215948,0.00021717,2]
[311857146,1705476638498,-350.20110314,0.00021717,2]
[311857147,1705476638510,-876.30395543,0.00021717,2]
[311857148,1705476638534,-502.61833434,0.00021717,2]
[311857149,1705476638568,-811.17161028,0.00021717,2]
[311857150,1705476638577,-4073.8875,0.00021717,2]
[311857151,1705476638586,-68039.6419,0.00021717,2]
[311857152,1705476638596,-440.5255,0.00021717,2]
[311857153,1705476638606,-4148.41,0.00021717,2]
[311857154,1705476638615,-600.5,0.00021717,2]
[311857156,1705476638624,-2408.8698179,0.00021717,2]
[311857158,1705476638634,-152.48,0.00021726,2]
[311857160,1705476638643,-152.48,0.00021795,2]
[311857162,1705476638653,-19126.13858845,0.00021814,2]
[311857164,1705476638662,-292.02540171,0.00021815,2]
[311857166,1705476638671,-156.83681916,0.00021815,2]
[311857168,1705476638680,-495.9601237,0.00021815,2]
[311857170,1705476638689,-243.20354855,0.00021815,2]
[311857172,1705476638699,-514.08463796,0.00021815,2]
[311857174,1705476638708,-7435.37480398,0.00021815,2]
[311857176,1705476638717,-265.50902465,0.00021815,2]
[311857178,1705476638726,-1551.54768025,0.00021815,2]
[311857180,1705476638736,-420.96890562,0.00021815,2]
[311857182,1705476638745,-398.82383259,0.00021815,2]
[311857184,1705476638755,-177.23300324,0.00021815,2]
[311857186,1705476638764,-1706.34602477,0.00021815,2]
[311857188,1705476638773,-193.9880117,0.00021815,2]
[311857190,1705476638782,-1625.76731336,0.00021815,2]
[311857192,1705476638792,-249.85799774,0.00021815,2]
[311857194,1705476638800,-235.91318779,0.00021815,2]
[311857196,1705476638809,-179.97944633,0.00021815,2]
[311857198,1705476638819,-832.22055949,0.00021815,2]
[311857200,1705476638828,-2170.46198968,0.00021815,2]
[311857202,1705476638837,-156.22796064,0.00021815,2]
[311857204,1705476638846,-222.05218544,0.00021816,2]
[311857206,1705476638855,-2751.35599215,0.00021816,2]
[311857208,1705476638864,-2889.54246973,0.00021816,2]
[311857210,1705476638873,-2602.05272684,0.00021816,2]
[311857212,1705476638882,-2942.4416,0.00021817,2]
[311857214,1705476638891,-203.5358,0.00021817,2]
[311857216,1705476638900,-599.5809,0.00021817,2]
[311857218,1705476638909,-245000.0,0.00021817,2]
[311857220,1705476638920,-88869.4546,0.00021817,2]
[311857222,1705476638929,-1000.0,0.00021817,2]
[311857224,1705476638938,-1000.0,0.00021817,2]
[311857226,1705476638947,-30502.8644,0.00021817,2]
[311857228,1705476638956,-213.9395,0.00021817,2]
[311857230,1705476638965,-1000.0,0.00021817,2]
[311857232,1705476638974,-167.61617295,0.00021817,2]
[311857234,1705476638983,-210.44981682,0.00021817,2]
[311857236,1705476638992,-699.25147308,0.00021817,2]
[311857238,1705476639001,-485.17989653,0.00021817,2]
[311857240,1705476639010,-195.93483541,0.00021817,2]
[311857242,1705476639019,-152.48,0.00021864,2]
[311857244,1705476639028,-239.45781888,0.0002189,2]
[311857246,1705476639038,-245.9732734,0.00021892,2]
[311857248,1705476639047,-68070.79661485,0.000219,2]
[311857250,1705476639058,-239.45781888,0.00021907,2]
[311857252,1705476639068,-180.98293002,0.00021914,2]
[311857254,1705476639077,-264.25751524,0.00021914,2]
[311857257,1705476639087,-245.44060071,0.00021914,2]
[311857258,1705476639096,-164.45072062,0.00021914,2]
[311857259,1705476639104,-155.61907805,0.00021914,2]
[311857260,1705476639114,-626.01392787,0.00021914,2]
[311857261,1705476639123,-155.26555109,0.00021914,2]
[311857262,1705476639134,-155.79021862,0.00021914,2]
[311857263,1705476639142,-245.08904922,0.00021914,2]
[311857264,1705476639151,-281.27567579,0.00021914,2]
[311857265,1705476639160,-262.9936855,0.00021914,2]
[311857266,1705476639168,-155.0,0.00021914,2]
[311857267,1705476639179,-500.27444784,0.00021914,2]
[311857269,1705476639189,-162.82740757,0.00021914,2]
[311857271,1705476639198,-155.32137395,0.00021914,2]
[311857273,1705476639207,-339.93363822,0.00021914,2]
[311857275,1705476639219,-155.47136183,0.00021914,2]
[311857277,1705476639228,-162.87166209,0.00021914,2]
[311857279,1705476639238,-284.87917924,0.00021914,2]
[311857281,1705476639247,-6245.2263515,0.00021914,2]
[311857283,1705476639257,-162.34847253,0.00021914,2]
[311857285,1705476639266,-241.85581709,0.00021914,2]
[311857287,1705476639275,-2766.5766924,0.00021914,2]
[311857289,1705476639284,-636.69520764,0.00021915,2]
[311857291,1705476639293,-200.23921048,0.00021915,2]
[311857293,1705476639303,-3681.17247904,0.00021915,2]
[311857295,1705476639312,-3186.15896106,0.00021915,2]
[311857298,1705476639321,-2939.94622894,0.00021915,2]
[311857300,1705476639330,-176.01932869,0.00021915,2]
[311857302,1705476639341,-249.8066575,0.00021915,2]
[311857304,1705476639350,-9886.27572031,0.00021915,2]